fUSD/lending_fUSD_20241013
["ID","MTS","AMOUNT","RATE_DAILY","PERIOD"]
[340211916,1728846681343,-500.0,0.0002111,2]
[340211917,1728846681353,-2400.0,0.0002111,2]
[340211918,1728846681362,-500.0,0.0002111,2]
[340211919,1728846681372,-500.0,0.0002111,2]
[340211920,1728846681382,-2400.0,0.0002111,2]
[340211921,1728846681391,-500.0,0.0002111,2]
[340211922,1728846681401,-500.0,0.0002111,2]
[340211923,1728846681410,-2400.0,0.0002111,2]
[340211924,1728846681420,-500.0,0.0002111,2]
[340211925,1728846681430,-505.46890229,0.0002111,2]
[340211926,1728846681440,-500.0,0.0002111,2]
[340211927,1728846681449,-500.0,0.0002111,2]
[340211928,1728846681461,-2400.0,0.0002111,2]
[340211929,1728846681470,-2400.0,0.0002111,2]
[340211930,1728846681479,-500.0,0.0002111,2]
[340211931,1728846681489,-500.0,0.0002111,2]
[340211932,1728846681499,-500.0,0.0002111,2]
[340211933,1728846681509,-923.62412977,0.0002111,2]
[340211934,1728846681518,-500.0,0.0002111,2]
[340211935,1728846681529,-500.0,0.0002111,2]
[340211936,1728846681539,-500.0,0.0002111,2]
[340211937,1728846681550,-500.0,0.0002111,2]
[340211938,1728846681560,-500.0,0.0002111,2]
[340211939,1728846681571,-500.0,0.0002111,2]
[340211940,1728846681580,-500.0,0.0002111,2]
[340211941,1728846681590,-500.0,0.0002111,2]
[340211942,1728846681600,-500.0,0.0002111,2]
[340211943,1728846681609,-500.0,0.0002111,2]
[340211944,1728846681619,-500.0,0.0002111,2]
[340211945,1728846681629,-500.0,0.0002111,2]
[340211946,1728846681638,-500.0,0.0002111,2]
[340211947,1728846681648,-500.0,0.0002111,2]
[340211948,1728846681657,-500.0,0.0002111,2]
[340211949,1728846681667,-500.0,0.0002111,2]
[340211950,1728846681676,-500.0,0.0002111,2]
[340211951,1728846681687,-600.0,0.0002111,2]
[340211952,1728846681696,-500.0,0.0002111,2]
[340211953,1728846681706,-500.0,0.0002111,2]
[340211954,1728846681717,-500.0,0.0002111,2]
[340211955,1728846681726,-500.0,0.0002111,2]
[340211956,1728846681736,-500.0,0.0002111,2]
[340211957,1728846681746,-500.0,0.0002111,2]
[340211958,1728846681755,-500.0,0.0002111,2]
[340211959,1728846681765,-600.0,0.0002111,2]
[340211960,1728846681776,-500.0,0.0002111,2]
[340211961,1728846681785,-500.0,0.0002111,2]
[340211962,1728846681796,-600.0,0.0002111,2]
[340211963,1728846681807,-500.0,0.0002111,2]
[340211964,1728846681816,-600.0,0.0002111,2]
[340211965,1728846681825,-600.0,0.0002111,2]
[340211966,1728846681835,-500.0,0.0002111,2]
[340211967,1728846681844,-600.0,0.0002111,2]
[340211968,1728846681853,-600.0,0.0002111,2]
[340211969,1728846681863,-600.0,0.0002111,2]
[340211970,1728846681872,-600.0,0.0002111,2]
[340211971,1728846681882,-600.0,0.0002111,2]
[340211972,1728846681892,-600.0,0.0002111,2]
[340211973,1728846681902,-600.0,0.0002111,2]
[340211974,1728846681912,-600.0,0.0002111,2]
[340211975,1728846681922,-150.0,0.00021197,2]
[340211976,1728846681934,-151.0,0.0002123,2]
[340211977,1728846681944,-152.0,0.00021236,4]
[340211978,1728846681953,-5934.86,0.0002137,2]
[340211979,1728846681964,-155.74,0.00021461,2]
[340211980,1728846681974,-160.0,0.000215,2]
[340211981,1728846681983,-1061.0,0.00021511,2]
[340211982,1728846681993,-4455.16792855,0.0002152,2]
[340211983,1728846682003,-1000.0,0.00021523,2]
[340211984,1728846682013,-1000.0,0.00021523,2]
[340211985,1728846682023,-1000.0,0.00021523,2]
[340211986,1728846682032,-1000.0,0.00021523,2]
[340211987,1728846682041,-1000.0,0.00021523,2]
[340211988,1728846682051,-1000.0,0.00021523,2]
[340211989,1728846682061,-1000.0,0.00021523,2]
[340211990,1728846682070,-1000.0,0.00021523,2]
[340211991,1728846682080,-1000.0,0.00021523,2]
[340211992,1728846682090,-1000.0,0.00021523,2]
[340211993,1728846682101,-913.46616957,0.00021523,2]
[340211994,1728846682111,-150.0,0.00021629,2]
[340211995,1728846682121,-617.18,0.00021709,2]
[340211996,1728846682131,-500.0,0.00021917,2]
[340211997,1728846682140,-500.0,0.00021917,2]
[340211998,1728846682150,-500.0,0.00021917,2]
[340211999,1728846682160,-500.0,0.00021917,2]
[340212000,1728846682169,-500.0,0.00021917,2]
[340212001,1728846682179,-515.89753155,0.00021917,2]
[340212002,1728846682189,-162.31589502,0.00021917,2]
[340212003,1728846682199,-500.0,0.00021917,2]
[340212004,1728846682210,-635.56099935,0.00021917,2]
[340212005,1728846682220,-511.37160984,0.00021917,30]
[340212006,1728846682230,-151.0,0.00021918,2]
[340212007,1728846682239,-151.0,0.00021918,2]
[340212008,1728846682249,-151.0,0.00021918,2]
[340212009,1728846682258,-151.0,0.00021918,2]
[340212010,1728846682267,-151.0,0.00021918,2]
[340212011,1728846682277,-243.892216,0.00021918,2]
[340212012,1728846682287,-647.87,0.00021918,2]
[340212013,1728846682297,-183.99,0.00021918,2]
[340212014,1728846682306,-25000.0,0.00022,7]
[340212015,1728846682316,-2032.61684112,0.00022,120]
[340212016,1728846682326,-600.67561248,0.00022,2]
[340212017,1728846682335,-498896.89524628,0.00022,2]
[340212018,1728846682344,-755.31351436,0.00022,2]
[340212019,1728846682353,-243.09585504,0.00022,2]
[340212020,1728846682363,-850.0,0.00022,2]
[340212021,1728846682373,-152.64,0.00022,2]
[340212022,1728846682383,-150.0,0.00022,2]
[340212023,1728846682394,-359.17,0.00022,2]
[340212024,1728846682404,-429.55,0.00022,2]
[340212025,1728846682414,-534.96,0.00022,2]
[340212026,1728846682424,-150.0,0.00022,2]
[340212027,1728846682435,-534.96,0.00022,2]
[340212028,1728846682445,-150.0,0.00022,2]
[340212029,1728846682454,-1070.77,0.00022,2]
[340212030,1728846682464,-429.55,0.00022,2]
[340212031,1728846682474,-359.17,0.00022,2]
[340212032,1728846682483,-150.0,0.00022,2]
[340212033,1728846682493,-150.0,0.00022,2]
[340212034,1728846682503,-150.0,0.00022,2]
[340212035,1728846682514,-359.17,0.00022,2]
[340212036,1728846682523,-429.55,0.00022,2]
[340212037,1728846682533,-150.0,0.00022,2]
[340212038,1728846682542,-1061.0,0.00022059,2]
[340212039,1728846682552,-150.0,0.00022062,2]
[340212040,1728846682562,-228.00212577,0.0002211,2]
[340212041,1728846682571,-151.95,0.00022137,30]
[340212042,1728846682581,-152.0,0.00022254,5]
[340212043,1728846682591,-500.0,0.00022299,120]
[340212044,1728846682600,-2314.11,0.000224,14]
[340212045,1728846682610,-7525.0,0.00022463,7]
[340212046,1728846682620,-150.0,0.00022494,2]
[340212047,1728846682630,-33630.27660028,0.000225,2]
[340212048,1728846682640,-3000.0,0.000225,2]
[340212049,1728846682650,-3000.0,0.000225,2]
[340212050,1728846682660,-217.84,0.00022603,2]
[340212051,1728846682670,-1061.0,0.00022607,2]
[340212052,1728846682680,-500.0,0.00022799,120]
[340212053,1728846682689,-359.17,0.00022822,2]
[340212054,1728846682699,-429.55,0.00022822,2]
[340212055,1728846682709,-150.0,0.00022822,2]
[340212056,1728846682719,-359.17,0.00022822,2]
[340212057,1728846682729,-429.55,0.00022822,2]
[340212058,1728846682739,-359.17,0.00022822,2]
[340212059,1728846682748,-359.17,0.00022822,2]
[340212060,1728846682757,-429.55,0.00022822,2]
[340212061,1728846682767,-429.55,0.00022822,2]
[340212062,1728846682776,-359.17,0.00022822,2]
[340212063,1728846682787,-358.45,0.00022822,2]
[340212064,1728846682796,-429.55,0.00022822,2]
[340212065,1728846682807,-429.55,0.00022822,2]
[340212066,1728846682817,-312.06,0.00022822,2]
[340212067,1728846682827,-150.0,0.00022856,2]
[340212068,1728846682836,-150.0,0.00022927,2]
[340212069,1728846682846,-2116.0,0.00023,120]
[340212070,1728846682856,-315.76,0.00023,2]
[340212071,1728846682866,-1002.1,0.00023,2]
[340212072,1728846682985,-202.21009038,0.00023,2]
[340212073,1728846682995,-265.21322327,0.0002301,2]
[340212074,1728846683006,-150.0,0.00023104,2]
[340212075,1728846683015,-150.0,0.00023104,2]
[340212076,1728846683026,-150.0,0.00023104,2]
[340212077,1728846683036,-150.0,0.00023104,2]
[340212078,1728846683046,-150.0,0.00023104,2]
[340212079,1728846683056,-150.0,0.00023104,2]
[340212080,1728846683065,-150.0,0.00023104,2]
[340212081,1728846683075,-150.0,0.00023104,2]
[340212082,1728846683084,-150.0,0.00023104,2]
[340212083,1728846683094,-534.96,0.00023104,2]
[340212084,1728846683103,-534.96,0.00023104,2]
[340212085,1728846683113,-534.29,0.00023104,2]
[340212086,1728846683122,-1061.0,0.00023155,2]
[340212087,1728846683132,-49446.94319045,0.000232,2]
[340212088,1728846683142,-563.02587639,0.0002322,2]
[340212089,1728846683153,-152.0,0.00023271,6]
[340212090,1728846683164,-449.598801,0.00023299,120]
[340212091,1728846683175,-150.0,0.0002336,2]
[340212092,1728846683184,-650.3447067,0.00023567,2]
[340212093,1728846683195,-1080.8269692,0.00023703,2]
[340212094,1728846683206,-150.0,0.00023792,2]
[340212095,1728846683215,-103539.65075867,0.00023922,2]
[340212096,1728846683225,-231764.34924133,0.00023922,2]
[340212097,1728846683235,-617.18,0.00023957,2]
[340212098,1728846683246,-1002.1,0.0002396,2]
[340212099,1728846683257,-315.76,0.0002398,2]
[340212100,1728846683266,-9922.6724598,0.00023984,2]
[340212101,1728846683276,-2857.6469003,0.00023984,2]
[340212102,1728846683285,-514.3853973,0.00023984,2]
[340212103,1728846683295,-41336.4396181,0.00023984,2]
[340212104,1728846683305,-967.85752895,0.00024,2]
[340212105,1728846683315,-76417.61635152,0.00024,2]
[340212106,1728846683326,-900.0,0.00024,2]
[340212107,1728846683336,-28682.2132205,0.00024048,7]
[340212108,1728846683346,-274.69691809,0.00024048,7]
[340212109,1728846683356,-3066.76894118,0.0002408,2]
[340212110,1728846683366,-621.53,0.0002411,2]
[340212111,1728846683375,-399.62112501,0.0002421,2]
[340212112,1728846683385,-3503.61177544,0.0002421,2]
[340212113,1728846683395,-150.0,0.00024225,2]
[340212114,1728846683404,-1225.02910025,0.0002425,2]
[340212115,1728846683414,-152.0,0.00024289,7]
[340212116,1728846683423,-335.64123191,0.0002442,2]
[340212117,1728846683433,-375.0,0.00024657,2]
[340212118,1728846683443,-150.0,0.00024657,2]
[340212119,1728846683452,-233.29899674,0.000247,2]
[340212120,1728846683463,-2000.0,0.00024872,120]
[340212121,1728846683473,-15196.76723442,0.000249,2]
[340212122,1728846683483,-1002.1,0.0002492,2]
[340212123,1728846683492,-315.76,0.0002496,2]
[340212124,1728846683503,-100000.0,0.00025,9]
[340212125,1728846683512,-3931.78145358,0.00025,2]
[340212126,1728846683522,-160.0,0.00025,2]
[340212127,1728846683531,-7767.07472729,0.00025,5]
[340212128,1728846683541,-38975.11031888,0.00025,2]
[340212129,1728846683550,-2885.6639633,0.00025,2]
[340212130,1728846683560,-327.83949907,0.00025,2]
[340212131,1728846683570,-1000.0,0.00025,2]
[340212132,1728846683580,-3207.73624664,0.000251,2]
[340212133,1728846683589,-3000.0,0.000252,2]
[340212134,1728846683599,-3000.0,0.000252,2]
[340212135,1728846683609,-204.445134,0.00025299,120]
[340212136,1728846683618,-152.0,0.00025307,8]
[340212137,1728846683628,-217.84,0.00025548,2]
[340212138,1728846683638,-1002.1,0.0002588,2]
[340212139,1728846683647,-315.76,0.0002594,2]
[340212140,1728846683656,-150.0,0.00026,120]
[340212141,1728846683666,-4288.63412966,0.00026,2]
[340212142,1728846683675,-4433.65,0.00026,2]
[340212143,1728846683685,-950.0,0.00026,2]
[340212144,1728846683695,-250.5842649,0.00026,2]
[340212145,1728846683705,-1500.0,0.00026,2]
[340212146,1728846683714,-1316.53160398,0.00026,2]
[340212147,1728846683723,-250.0,0.00026,2]
[340212148,1728846683734,-1500.0,0.00026,2]
[340212149,1728846683744,-516.41786704,0.0002604,2]
[340212150,1728846683754,-2000.0,0.00026097,120]
[340212151,1728846683764,-617.18,0.00026206,2]
[340212152,1728846683774,-221.866384,0.00026299,120]
[340212153,1728846683784,-152.0,0.00026325,9]
[340212154,1728846683793,-26030.36922789,0.000264,2]
[340212155,1728846683803,-151.0,0.00026538,2]
[340212156,1728846683813,-1002.1,0.0002684,2]
[340212157,1728846683822,-315.76,0.0002692,2]
[340212158,1728846683832,-410455.40835091,0.00027,7]
[340212159,1728846683842,-434.7341558,0.00027,120]
[340212160,1728846683851,-11113.99972989,0.00027,2]
[340212161,1728846683861,-408.64089179,0.00027,2]
[340212162,1728846683871,-981.48996185,0.00027,2]
[340212163,1728846683880,-2000.0,0.00027,2]
[340212164,1728846683890,-2014.761464,0.0002701,2]
[340212165,1728846683900,-3475.8,0.00027123,2]
[340212166,1728846683910,-500.0,0.00027255,3]
[340212167,1728846683919,-500.0,0.00027264,3]
[340212168,1728846683930,-500.0,0.00027273,3]
[340212169,1728846683941,-500.0,0.00027282,3]
[340212170,1728846683951,-500.0,0.0002729,3]
[340212171,1728846683961,-9435.48031671,0.00027294,2]
[340212172,1728846683971,-9435.48031671,0.00027294,2]
[340212173,1728846683981,-9435.48031671,0.00027294,2]
[340212174,1728846683991,-500.0,0.00027299,3]
[340212175,1728846684002,-500.0,0.00027308,3]
[340212176,1728846684012,-500.0,0.00027317,3]
[340212177,1728846684022,-2000.0,0.00027322,120]
[340212178,1728846684032,-500.0,0.00027326,3]
[340212179,1728846684042,-500.0,0.00027334,3]
[340212180,1728846684051,-500.0,0.00027335,7]
[340212181,1728846684061,-700.0,0.00027335,7]
[340212182,1728846684070,-600.0,0.00027335,7]
[340212183,1728846684080,-152.0,0.00027342,10]
[340212184,1728846684089,-388.83968115,0.0002736,120]
[340212185,1728846684099,-224.92021313,0.00027397,2]
[340212186,1728846684109,-519.46906251,0.00027397,2]
[340212187,1728846684120,-438.12,0.00027397,2]
[340212188,1728846684130,-438.12,0.00027397,2]
[340212189,1728846684140,-438.12,0.00027397,2]
[340212190,1728846684150,-438.12,0.00027397,2]
[340212191,1728846684159,-438.12,0.00027397,2]
[340212192,1728846684169,-438.12,0.00027397,2]
[340212193,1728846684179,-438.12,0.00027397,2]
[340212194,1728846684189,-438.12,0.00027397,2]
[340212195,1728846684199,-438.12,0.00027397,2]
[340212196,1728846684210,-438.12,0.00027397,2]
[340212197,1728846684220,-438.12,0.00027397,2]
[340212198,1728846684230,-438.12,0.00027397,2]
[340212199,1728846684242,-438.12,0.00027397,2]
[340212200,1728846684252,-438.12,0.00027397,2]
[340212201,1728846684262,-438.12,0.00027397,2]
[340212202,1728846684272,-438.12,0.00027397,2]
[340212203,1728846684282,-438.12,0.00027397,2]
[340212204,1728846684292,-438.12,0.00027397,2]
[340212205,1728846684302,-438.12,0.00027397,2]
[340212206,1728846684312,-438.12,0.00027397,2]
[340212207,1728846684321,-438.12,0.00027397,2]
[340212208,1728846684331,-438.12,0.00027397,2]
[340212209,1728846684340,-438.12,0.00027397,2]
[340212210,1728846684350,-438.18990311,0.00027397,2]
[340212211,1728846684361,-750.0,0.00027397,2]
[340212212,1728846684371,-151.0,0.00027397,7]
[340212213,1728846684380,-151.0,0.00027397,7]
[340212214,1728846684391,-151.0,0.00027397,7]
[340212215,1728846684401,-151.0,0.00027397,7]
[340212216,1728846684410,-151.0,0.00027397,7]
[340212217,1728846684421,-151.0,0.00027397,7]
[340212218,1728846684431,-151.0,0.00027397,7]
[340212219,1728846684440,-151.0,0.00027397,7]
[340212220,1728846684450,-151.0,0.00027397,7]
[340212221,1728846684460,-151.0,0.00027397,7]
[340212222,1728846684470,-151.0,0.00027397,7]
[340212223,1728846684480,-151.0,0.00027397,7]
[340212224,1728846684490,-151.0,0.00027397,7]
[340212225,1728846684499,-151.0,0.00027397,7]
[340212226,1728846684510,-151.0,0.00027397,7]
[340212227,1728846684521,-151.0,0.00027397,7]
[340212228,1728846684531,-151.0,0.00027397,7]
[340212229,1728846684540,-159.523555,0.00027397,7]
[340212230,1728846684550,-151.0,0.00027397,7]
[340212231,1728846684559,-151.0,0.00027397,7]
[340212232,1728846684568,-151.0,0.00027397,7]
[340212233,1728846684578,-151.0,0.00027397,7]
[340212234,1728846684587,-151.0,0.00027397,7]
[340212235,1728846684597,-151.0,0.00027397,7]
[340212236,1728846684607,-151.0,0.00027397,7]
[340212237,1728846684616,-273.309855,0.00027397,7]
[340212238,1728846684626,-400.0,0.00027397,10]
[340212239,1728846684635,-400.0,0.00027397,10]
[340212240,1728846684645,-208.56963898,0.00027397,10]
[340212241,1728846684655,-151.0,0.00027397,7]
[340212242,1728846684665,-151.0,0.00027397,7]
[340212243,1728846684674,-151.0,0.00027397,7]
[340212244,1728846684683,-151.0,0.00027397,7]
[340212245,1728846684693,-151.0,0.00027397,7]
[340212246,1728846684702,-151.0,0.00027397,7]
[340212247,1728846684712,-151.0,0.00027397,7]
[340212248,1728846684722,-151.0,0.00027397,7]
[340212249,1728846684732,-151.0,0.00027397,7]
[340212250,1728846684844,-151.0,0.00027397,7]
[340212251,1728846684855,-151.0,0.00027397,7]
[340212252,1728846684865,-151.0,0.00027397,7]
[340212253,1728846684874,-151.0,0.00027397,7]
[340212254,1728846684884,-151.0,0.00027397,7]
[340212255,1728846684894,-151.0,0.00027397,7]
[340212256,1728846684904,-151.0,0.00027397,7]
[340212257,1728846684914,-151.0,0.00027397,7]
[340212258,1728846684924,-194.646969,0.00027397,7]
[340212259,1728846684937,-9872.28,0.00027397,10]
[340212260,1728846684947,-8226.9,0.00027397,10]
[340212261,1728846684957,-6855.75,0.00027397,10]
[340212262,1728846684967,-5713.12,0.00027397,10]
[340212263,1728846684978,-201.99961705,0.00027397,4]
[340212264,1728846684987,-424.46,0.000274,14]
[340212265,1728846684997,-190.63847376,0.000275,2]
[340212266,1728846685008,-13354.03931781,0.000275,2]
[340212267,1728846685017,-1002.1,0.000278,2]
[340212268,1728846685027,-3000.0,0.000279,2]
[340212269,1728846685037,-1500.0,0.000279,2]
[340212270,1728846685047,-315.76,0.000279,2]
[340212271,1728846685057,-621.53,0.00027945,2]
[340212272,1728846685066,-150.0,0.00028,120]
[340212273,1728846685076,-4987.76611323,0.00028,3]
[340212274,1728846685086,-3363.76869845,0.00028,2]
[340212275,1728846685095,-24926.13506658,0.00028,2]
[340212276,1728846685104,-498.52270133,0.00028,2]
[340212277,1728846685114,-1000.0,0.00028,2]
[340212278,1728846685123,-700.0,0.00028157,7]
[340212279,1728846685133,-600.0,0.00028157,7]
[340212280,1728846685143,-152.0,0.0002836,11]
[340212281,1728846685153,-162.32631749,0.0002836,5]
[340212282,1728846685165,-500.0,0.00028431,7]
[340212283,1728846685175,-617.18,0.00028454,2]
[340212284,1728846685184,-4280.0,0.00028463,7]
[340212285,1728846685193,-217.84,0.00028493,2]
[340212286,1728846685203,-2000.0,0.00028546,120]
[340212287,1728846685213,-1002.1,0.0002876,2]
[340212288,1728846685222,-315.76,0.0002888,2]
[340212289,1728846685232,-700.0,0.00028979,7]
[340212290,1728846685241,-600.0,0.00028979,7]
[340212291,1728846685251,-404.66419386,0.00028979,7]
[340212292,1728846685260,-8500.90873925,0.00028984,2]
[340212293,1728846685270,-399.04608046,0.00029,2]
[340212294,1728846685279,-209.63365022,0.00029011,2]
[340212295,1728846685289,-369.54932971,0.0002904,7]
[340212296,1728846685299,-150.0,0.0002904,7]
[340212297,1728846685308,-150.0,0.0002904,7]
[340212298,1728846685317,-153.96864642,0.0002904,7]
[340212299,1728846685327,-162.20743455,0.0002904,7]
[340212300,1728846685336,-151.04374055,0.0002904,7]
[340212301,1728846685346,-150.0,0.0002904,7]
[340212302,1728846685356,-150.0,0.0002904,7]
[340212303,1728846685365,-150.0,0.0002904,7]
[340212304,1728846685375,-150.0,0.0002904,7]
[340212305,1728846685384,-151.51675376,0.0002904,7]
[340212306,1728846685393,-150.0,0.0002904,7]
[340212307,1728846685405,-164.34678668,0.0002904,7]
[340212308,1728846685415,-150.0,0.0002904,7]
[340212309,1728846685425,-150.0,0.0002904,7]
[340212310,1728846685436,-369.54932971,0.00029073,7]
[340212311,1728846685446,-162.20743455,0.00029073,7]
[340212312,1728846685456,-150.0,0.00029075,7]
[340212313,1728846685466,-369.54932971,0.00029105,7]
[340212314,1728846685476,-162.20743455,0.00029105,7]
[340212315,1728846685486,-150.0,0.00029109,7]
[340212316,1728846685495,-369.54932971,0.00029138,7]
[340212317,1728846685505,-162.20743455,0.00029138,7]
[340212318,1728846685514,-150.0,0.00029143,7]
[340212319,1728846685524,-150.0,0.00029144,7]
[340212320,1728846685536,-150.0,0.0002916,7]
[340212321,1728846685546,-369.54932971,0.00029171,7]
[340212322,1728846685557,-162.20743455,0.00029171,7]
[340212323,1728846685566,-150.0,0.00029178,7]
[340212324,1728846685576,-369.54932971,0.00029203,7]
[340212325,1728846685585,-162.20743455,0.00029203,7]
[340212326,1728846685595,-150.0,0.00029212,7]
[340212327,1728846685604,-369.54932971,0.00029236,7]
[340212328,1728846685614,-162.20743455,0.00029236,7]
[340212329,1728846685623,-150.0,0.00029246,7]
[340212330,1728846685633,-150.0,0.00029248,7]
[340212331,1728846685643,-369.54932971,0.00029268,7]
[340212332,1728846685653,-162.20743455,0.00029268,7]
[340212333,1728846685663,-150.0,0.00029279,7]
[340212334,1728846685672,-150.0,0.00029281,7]
[340212335,1728846685683,-369.54932971,0.00029301,7]
[340212336,1728846685692,-162.20743455,0.00029301,7]
[340212337,1728846685701,-150.0,0.00029315,7]
[340212338,1728846685711,-369.54932971,0.00029334,7]
[340212339,1728846685720,-162.20743455,0.00029334,7]
[340212340,1728846685729,-150.0,0.00029349,7]
[340212341,1728846685739,-150.0,0.00029353,7]
[340212342,1728846685748,-369.54932971,0.00029366,7]
[340212343,1728846685757,-162.20743455,0.00029366,7]
[340212344,1728846685767,-7291.6373486,0.0002938,2]
[340212345,1728846685776,-2100.7909472,0.0002938,2]
[340212346,1728846685785,-514.3853973,0.0002938,2]
[340212347,1728846685795,-30400.8128516,0.0002938,2]
[340212348,1728846685804,-150.0,0.00029384,7]
[340212349,1728846685813,-369.54932971,0.00029399,7]
[340212350,1728846685822,-162.20743455,0.00029399,7]
[340212351,1728846685832,-150.0,0.00029399,7]
[340212352,1728846685841,-1199999.999999,0.000294,20]
[340212353,1728846685850,-150.0,0.00029418,7]
[340212354,1728846685860,-369.54932971,0.00029431,7]
[340212355,1728846685869,-162.20743455,0.00029431,7]
[340212356,1728846685879,-150.0,0.00029452,7]
[340212357,1728846685888,-150.0,0.00029457,7]
[340212358,1728846685897,-369.54932971,0.00029464,7]
[340212359,1728846685906,-162.20743455,0.00029464,7]
[340212360,1728846685915,-150.0,0.00029487,7]
[340212361,1728846685925,-369.54932971,0.00029497,7]
[340212362,1728846685938,-162.20743455,0.00029497,7]
[340212363,1728846685947,-150.0,0.00029501,7]
[340212364,1728846685956,-150.0,0.00029518,7]
[340212365,1728846685966,-150.0,0.00029521,7]
[340212366,1728846685976,-369.54932971,0.00029529,7]
[340212367,1728846685986,-162.20743455,0.00029529,7]
[340212368,1728846685996,-150.0,0.00029555,7]
[340212369,1728846686006,-150.0,0.00029561,7]
[340212370,1728846686016,-369.54932971,0.00029562,7]
[340212371,1728846686026,-162.20743455,0.00029562,7]
[340212372,1728846686036,-500.0,0.00029589,2]
[340212373,1728846686047,-150.0,0.0002959,7]
[340212374,1728846686057,-369.54932971,0.00029594,7]
[340212375,1728846686067,-162.20743455,0.00029594,7]
[340212376,1728846686079,-150.0,0.00029624,7]
[340212377,1728846686088,-369.54932971,0.00029627,7]
[340212378,1728846686100,-162.20743455,0.00029627,7]
[340212379,1728846686110,-150.0,0.00029638,7]
[340212380,1728846686120,-150.0,0.00029658,7]
[340212381,1728846686130,-369.54932971,0.0002966,7]
[340212382,1728846686139,-162.20743455,0.0002966,7]
[340212383,1728846686150,-150.0,0.00029665,7]
[340212384,1728846686159,-369.54932971,0.00029692,7]
[340212385,1728846686169,-162.20743455,0.00029692,7]
[340212386,1728846686181,-150.0,0.00029693,7]
[340212387,1728846686191,-1002.1,0.0002972,2]
[340212388,1728846686201,-369.54932971,0.00029725,7]
[340212389,1728846686213,-162.20743455,0.00029725,7]
[340212390,1728846686222,-150.0,0.00029727,7]
[340212391,1728846686232,-369.54932971,0.00029757,7]
[340212392,1728846686244,-162.20743455,0.00029757,7]
[340212393,1728846686254,-150.0,0.00029757,7]
[340212394,1728846686265,-150.0,0.00029761,7]
[340212395,1728846686276,-150.0,0.00029769,7]
[340212396,1728846686286,-2000.0,0.00029771,120]
[340212397,1728846686297,-369.54932971,0.0002979,7]
[340212398,1728846686306,-162.20743455,0.0002979,7]
[340212399,1728846686316,-150.0,0.00029795,7]
[340212400,1728846686325,-700.0,0.00029801,7]
[340212401,1728846686335,-600.0,0.00029801,7]
[340212402,1728846686344,-369.54932971,0.00029823,7]
[340212403,1728846686354,-162.20743455,0.00029823,7]
[340212404,1728846686363,-150.0,0.0002983,7]
[340212405,1728846686372,-369.54932971,0.00029855,7]
[340212406,1728846686382,-162.20743455,0.00029855,7]
[340212407,1728846686391,-315.76,0.0002986,2]
[340212408,1728846686400,-150.0,0.00029864,7]
[340212409,1728846686410,-150.0,0.00029873,7]
[340212410,1728846686419,-150.0,0.00029877,7]
[340212411,1728846686430,-369.54932971,0.00029888,7]
[340212412,1728846686441,-162.20743455,0.00029888,7]
[340212413,1728846686452,-150.0,0.00029898,7]
[340212414,1728846686547,-73847.33627034,0.000299,2]
[340212415,1728846686566,-424.46,0.000299,14]